bitfinex/quotes_BTCUSD_20230110
["timestamp","ask_amount","ask_price","bid_price","bid_amount"]
[1673314961561,0.77789505,17206.0,17205.0,0.14149928]
[1673314961817,0.95186343,17206.0,17205.0,0.14149928]
[1673314962088,0.95186343,17206.0,17205.0,0.05349928]
[1673314962089,1.36723399,17206.0,17205.0,0.05349928]
[1673314962341,1.37423399,17206.0,17205.0,0.12749928]
[1673314962864,1.05172145,17206.0,17205.0,0.13549928]
[1673314963363,0.87775307,17206.0,17205.0,0.13549928]
[1673314969043,1.45874607,17206.0,17205.0,0.13549928]
[1673314970038,1.45874607,17206.0,17205.0,0.71672528]
[1673314970329,1.45874607,17206.0,17205.0,0.13549928]
[1673314971893,1.45874607,17206.0,17205.0,0.12231128]
[1673314972139,1.45874607,17206.0,17205.0,0.70353728]
[1673314973417,0.856793,17206.0,17205.0,0.70353728]
[1673314973668,0.856793,17206.0,17205.0,2.82326989]
[1673314973925,0.856793,17206.0,17205.0,3.65942031]
[1673314974183,0.856793,17206.0,17205.0,4.31133402]
[1673314974933,0.856793,17206.0,17205.0,4.3113382]
[1673314975191,0.856793,17206.0,17205.0,3.62068767]
[1673314975459,0.856793,17206.0,17205.0,2.99745731]
[1673314976994,0.856793,17206.0,17205.0,3.35942031]
[1673314977758,0.856793,17206.0,17205.0,3.62068767]
[1673314978058,0.856793,17206.0,17205.0,4.31136039]
[1673314978567,0.856793,17206.0,17205.0,4.20191367]
[1673314979326,0.856793,17206.0,17205.0,4.89118771]
[1673314979582,0.856793,17206.0,17205.0,5.19118771]
[1673314980356,0.856793,17206.0,17205.0,4.89118771]
[1673314980937,0.856793,17206.0,17205.0,3.94064631]
[1673314981433,0.687993,17206.0,17205.0,5.36534452]
[1673314982184,0.687993,17206.0,17205.0,6.13346378]
[1673314982428,0.687993,17206.0,17205.0,5.78511883]
[1673314982949,0.687993,17206.0,17205.0,5.34967988]
[1673314983206,0.687993,17206.0,17205.0,5.78504729]
[1673314983459,0.580993,17206.0,17205.0,5.70304729]
[1673314983741,0.589993,17206.0,17205.0,5.78504715]
[1673314983996,0.589993,17206.0,17205.0,5.24654104]
[1673314984256,0.589993,17206.0,17205.0,5.975275]
[1673314984507,0.589993,17206.0,17205.0,6.175275]
[1673314986035,0.589993,17206.0,17205.0,6.1691308]
[1673314986289,0.589993,17206.0,17205.0,5.9949889]
[1673314987306,0.589993,17206.0,17205.0,6.2949889]
[1673314987555,0.589993,17206.0,17205.0,6.16905045]
[1673314987804,0.589993,17206.0,17205.0,5.82106444]
[1673314988836,0.389993,17206.0,17205.0,6.12106444]
[1673314989082,0.389993,17206.0,17205.0,6.29512681]
[1673314990107,0.389993,17206.0,17205.0,6.31919552]
[1673314990364,0.389993,17206.0,17205.0,6.48799552]
[1673314990926,0.369993,17206.0,17205.0,6.48799552]
[1673314991363,0.369993,17206.0,17205.0,5.61535229]
[1673314991647,0.169993,17206.0,17205.0,5.61535229]
[1673314992419,0.00359679,17207.0,17206.0,0.35510674]
[1673314992680,0.00359679,17207.0,17206.0,5.23740179]
[1673314993429,0.00359679,17207.0,17206.0,5.41138821]
[1673314993721,0.00359679,17207.0,17206.0,5.06341858]
[1673314993956,0.00959679,17207.0,17206.0,5.13641858]
[1673314996969,0.00959679,17207.0,17206.0,5.8498731]
[1673314997474,0.00959679,17207.0,17206.0,5.83403544]
[1673314997713,1.26946835,17210.0,17206.0,5.83403544]
[1673314997714,1.18249483,17210.0,17207.0,0.83860489]
[1673314997958,1.18249483,17210.0,17209.0,0.6]
[1673314997959,0.67705038,17210.0,17209.0,0.6]
[1673314998173,0.67705038,17210.0,17209.0,1.189591]
[1673314998936,0.67705038,17210.0,17209.0,1.770682]
[1673314999192,0.67705038,17210.0,17209.0,2.360773]
[1673314999193,0.75605038,17210.0,17209.0,2.360773]
[1673314999448,0.079,17210.0,17209.0,2.360773]
[1673314999700,0.079,17210.0,17209.0,4.16503602]
[1673314999957,0.079,17210.0,17209.0,4.82699902]
[1673315000471,0.079,17210.0,17209.0,4.24590802]
[1673315002048,0.079,17210.0,17209.0,6.37613642]
[1673315002326,0.079,17210.0,17209.0,5.32737766]
[1673315002573,0.079,17210.0,17209.0,5.68168928]
[1673315002820,0.00554632,17211.0,17209.0,6.82078157]
[1673315003080,0.00554632,17211.0,17210.0,1.039263]
[1673315003334,0.00554632,17211.0,17210.0,2.782434]
[1673315004163,0.01154632,17211.0,17210.0,2.894434]
[1673315004416,0.01154632,17211.0,17210.0,3.48838167]
[1673315004665,0.01154632,17211.0,17210.0,4.10528915]
[1673315005954,0.00554632,17211.0,17210.0,3.99328915]
[1673315006277,0.01154632,17211.0,17210.0,4.06528915]
[1673315008777,0.01154632,17211.0,17210.0,3.00254148]
[1673315009032,0.01154632,17211.0,17210.0,2.80254148]
[1673315009782,0.01154632,17211.0,17210.0,2.44057848]
[1673315010029,0.01154632,17211.0,17210.0,2.80254148]
[1673315010584,0.01154632,17211.0,17210.0,2.74057848]
[1673315011094,0.01154632,17211.0,17210.0,2.44057848]
[1673315011466,0.01154632,17211.0,17210.0,0.69740748]
[1673315011666,0.01154632,17211.0,17210.0,0.68890748]
[1673315012693,0.65012087,17211.0,17210.0,0.68890748]
[1673315012963,0.65012087,17211.0,17210.0,0.69740748]
[1673315013198,1.00642857,17212.0,17210.0,0.69740748]
[1673315013451,1.00642857,17212.0,17211.0,0.0085]
[1673315013709,1.18266606,17212.0,17211.0,0.0085]
[1673315014727,1.76365606,17212.0,17211.0,0.0085]
[1673315014976,1.76865606,17212.0,17211.0,0.0085]
[1673315015486,1.76865606,17212.0,17211.0,0.0115]
[1673315016253,1.76365606,17212.0,17211.0,0.0085]
[1673315016518,1.83165606,17212.0,17211.0,0.0135]
[1673315016731,2.10095606,17212.0,17211.0,0.0085]
[1673315016992,3.2447717,17212.0,17211.0,0.0085]
[1673315017503,3.8257617,17212.0,17211.0,0.0085]
[1673315017750,4.17375437,17212.0,17211.0,0.0085]
[1673315018017,3.8257617,17212.0,17211.0,0.0085]
[1673315018243,4.06678599,17212.0,17211.0,0.01]
[1673315018496,4.06678599,17212.0,17211.0,0.0185]
[1673315020262,4.24084616,17212.0,17211.0,0.0185]
[1673315020754,4.0664363,17212.0,17211.0,0.0185]
[1673315021020,4.50140555,17212.0,17211.0,0.0185]
[1673315021594,4.42595494,17212.0,17211.0,0.0185]
[1673315023810,4.24084616,17212.0,17211.0,0.0185]
[1673315024048,3.94084616,17212.0,17211.0,0.0185]
[1673315024299,4.20140256,17212.0,17211.0,0.0185]
[1673315024546,3.76643331,17212.0,17211.0,0.0185]
[1673315027572,2.59155833,17212.0,17211.0,0.0185]
[1673315028072,2.42305833,17212.0,17211.0,0.0185]
[1673315028318,2.1371477,17212.0,17211.0,0.0185]
[1673315030094,0.95940227,17212.0,17211.0,0.96616579]
[1673315030348,0.067,17212.0,17211.0,0.7284879]
[1673315031098,0.24070987,17212.0,17211.0,0.7284879]
[1673315031359,0.53004587,17212.0,17211.0,0.7284879]
[1673315033357,0.24070987,17212.0,17211.0,0.7284879]
[1673315033605,0.067,17212.0,17211.0,0.7284879]
[1673315033858,0.067,17212.0,17211.0,0.90293033]
[1673315033859,0.24070987,17212.0,17211.0,0.90293033]
[1673315034112,0.067,17212.0,17211.0,2.06497633]
[1673315035622,0.067,17212.0,17211.0,2.66497633]
[1673315044356,0.067,17212.0,17211.0,3.24599933]
[1673315046331,0.067,17212.0,17211.0,3.54599933]
[1673315046853,0.067,17212.0,17211.0,3.24599933]
[1673315047916,0.7043503,17213.0,17211.0,2.65497633]
[1673315048197,0.9649067,17213.0,17212.0,0.0085]
[1673315049712,1.38535958,17213.0,17212.0,0.0085]
[1673315049968,2.66073438,17213.0,17212.0,0.0185]
[1673315050225,3.09570363,17213.0,17212.0,0.01840883]
[1673315050477,2.83514723,17213.0,17212.0,0.01840883]
[1673315050740,2.77314723,17213.0,17212.0,0.00840883]
[1673315050999,3.6008543,17213.0,17212.0,0.01840883]
[1673315052133,3.5388543,17213.0,17212.0,0.00840883]
[1673315052300,3.6008543,17213.0,17212.0,0.01940883]
[1673315053519,3.41610323,17213.0,17212.0,0.01940883]
[1673315054325,3.67689779,17213.0,17212.0,0.01940883]
[1673315055076,3.41610323,17213.0,17212.0,0.01940883]
[1673315056315,3.59962248,17213.0,17212.0,0.01940883]
[1673315056826,4.18057848,17213.0,17212.0,0.01940883]
[1673315057083,3.83258581,17213.0,17212.0,0.01940883]
[1673315057597,3.7435626,17213.0,17212.0,0.01940883]
[1673315057822,3.56325651,17213.0,17212.0,0.01940883]
[1673315058112,3.70383531,17213.0,17212.0,0.01940883]
[1673315060930,3.64183531,17213.0,17212.0,0.00840883]
[1673315061909,3.77783531,17213.0,17212.0,0.00940883]
[1673315063764,3.80825371,17213.0,17212.0,0.00940883]
[1673315066614,3.80825371,17213.0,17212.0,0.00840883]
[1673315066615,4.10682787,17213.0,17212.0,0.00840883]
[1673315066875,4.24282787,17213.0,17212.0,0.00840883]
[1673315067653,3.80825371,17213.0,17212.0,0.00840883]
[1673315067917,3.63945371,17213.0,17212.0,0.00840883]
[1673315074743,3.63945371,17213.0,17212.0,0.00833554]
[1673315076978,3.50345371,17213.0,17212.0,0.00833554]
[1673315077194,3.64045371,17213.0,17212.0,0.00833554]
[1673315078028,4.16268458,17213.0,17212.0,0.00833554]
[1673315078284,3.64045371,17213.0,17212.0,0.00833554]
[1673315090186,4.16268458,17213.0,17211.0,0.17444243]
[1673315090495,0.55201925,17212.0,17211.0,0.17444243]
[1673315090752,2.58432525,17212.0,17211.0,0.17444243]
[1673315091020,3.00477813,17212.0,17211.0,0.17444243]
[1673315092310,4.06238698,17212.0,17211.0,0.17444243]
[1673315092848,4.19838698,17212.0,17211.0,0.17444243]
[1673315093325,4.33438698,17212.0,17211.0,0.17444243]
[1673315095638,4.06238698,17212.0,17211.0,0.17444243]
[1673315095871,4.19838698,17212.0,17211.0,0.17444243]
[1673315096134,4.01238698,17212.0,17211.0,0.17444243]
[1673315096390,4.14838698,17212.0,17211.0,0.17444243]
[1673315097678,3.97988698,17212.0,17211.0,0.17444243]
[1673315101629,3.97655398,17212.0,17211.0,0.17444243]
[1673315108477,2.45288023,17212.0,17211.0,0.17444243]
[1673315113817,2.45280912,17212.0,17211.0,0.17444243]
[1673315114332,1.10266021,17212.0,17211.0,0.78294243]
[1673315114582,0.74513932,17212.0,17211.0,1.60264454]
[1673315114843,0.91914096,17212.0,17211.0,1.60264454]
[1673315115103,0.74514158,17212.0,17211.0,1.60264454]
[1673315115390,0.91919209,17212.0,17211.0,1.60264454]
[1673315115634,0.91919209,17212.0,17211.0,2.18366754]
[1673315115635,0.57112289,17212.0,17211.0,2.18366754]
[1673315115930,0.17405051,17212.0,17211.0,3.12665354]
[1673315116154,0.30905051,17212.0,17211.0,3.12765354]
[1673315116407,0.4707908,17213.0,17211.0,3.12665354]
[1673315116660,0.4707908,17213.0,17212.0,0.1771]
[1673315116884,0.4707908,17213.0,17212.0,0.75809]
[1673315117723,0.20971842,17213.0,17212.0,0.75809]
[1673315117977,0.20971842,17213.0,17212.0,1.40197985]
[1673315118232,0.03566791,17213.0,17212.0,1.40197985]
[1673315118754,0.17066791,17213.0,17212.0,1.40297985]
[1673315119276,0.34471842,17213.0,17212.0,1.40297985]
[1673315119794,0.34471842,17213.0,17212.0,1.98396985]
[1673315119795,0.17066791,17213.0,17212.0,1.98396985]
[1673315120013,0.17066791,17213.0,17212.0,2.56495985]
[1673315121481,0.03566791,17213.0,17212.0,2.56395985]
[1673315121725,0.17166791,17213.0,17212.0,2.56395985]
[1673315121977,0.03566791,17213.0,17212.0,2.56395985]
[1673315122229,0.17066791,17213.0,17212.0,2.56395985]
[1673315122497,0.03566791,17213.0,17212.0,2.56395985]
[1673315122746,0.16966791,17213.0,17212.0,2.56395985]
[1673315123501,0.16966791,17213.0,17212.0,2.86395985]
[1673315124030,0.16966791,17213.0,17212.0,2.56395985]
[1673315124817,0.16966791,17213.0,17212.0,1.98296985]
[1673315126121,0.16966791,17213.0,17212.0,2.34493285]
[1673315126821,0.16966791,17213.0,17212.0,1.98296985]
[1673315128868,0.16966791,17213.0,17212.0,2.28296985]
[1673315130357,0.16966791,17213.0,17212.0,1.63908]
[1673315130612,0.16966791,17213.0,17212.0,4.26977562]
[1673315131099,0.16966791,17213.0,17212.0,3.582033]
[1673315131620,0.16908162,17213.0,17212.0,4.2582843]
[1673315132626,0.03508162,17213.0,17212.0,4.2582843]
[1673315132868,0.17008162,17213.0,17212.0,4.2582843]
[1673315134131,0.17008162,17213.0,17212.0,2.9582843]
[1673315134654,0.17008162,17213.0,17212.0,2.5963213]
[1673315135153,0.17008162,17213.0,17212.0,2.9582843]
[1673315136153,0.15973862,17213.0,17212.0,2.9582843]
[1673315136432,0.15973862,17213.0,17212.0,2.0153313]
[1673315136928,0.15973862,17213.0,17212.0,0.8533513]
[1673315137426,0.15973862,17213.0,17212.0,0.8448513]
[1673315137675,0.15973862,17213.0,17212.0,0.6762513]
[1673315137925,0.44907462,17213.0,17212.0,0.6762513]
[1673315138174,0.15973862,17213.0,17212.0,0.6762513]
[1673315138419,0.44907462,17213.0,17212.0,0.6762513]
[1673315138926,0.44907462,17213.0,17212.0,0.6847513]
[1673315139176,0.44907462,17213.0,17212.0,0.0085]
[1673315139679,1.03003062,17213.0,17212.0,0.0085]
[1673315139930,1.23003062,17213.0,17212.0,0.0085]
[1673315140421,1.03003062,17213.0,17212.0,0.0085]
[1673315140662,0.74069462,17213.0,17212.0,0.0085]
[1673315140904,1.23003062,17213.0,17212.0,0.0085]
[1673315141426,0.94069462,17213.0,17212.0,0.0085]
[1673315141907,1.23003062,17213.0,17212.0,0.0085]
[1673315142161,0.35973862,17213.0,17212.0,0.0085]
[1673315144118,0.64907462,17213.0,17212.0,0.0085]
[1673315144363,0.35973862,17213.0,17212.0,0.0085]
[1673315144610,1.23003062,17213.0,17212.0,0.0085]
[1673315145594,0.94069462,17213.0,17212.0,0.0085]
[1673315146094,1.23003062,17213.0,17212.0,0.0085]
[1673315146828,0.94069462,17213.0,17212.0,0.0085]
[1673315147330,0.35973862,17213.0,17212.0,0.0085]
[1673315147637,0.64907462,17213.0,17212.0,0.0085]
[1673315148125,1.11474513,17213.0,17212.0,0.0085]
[1673315148376,1.40408113,17213.0,17212.0,0.0085]
[1673315148630,1.11474513,17213.0,17212.0,0.0085]
[1673315148925,1.11474513,17213.0,17212.0,0.61696347]
[1673315148926,0.35973862,17213.0,17212.0,0.61696347]
[1673315150897,0.53378913,17213.0,17212.0,0.61696347]
[1673315152361,0.79486151,17213.0,17212.0,0.61696347]
[1673315152887,0.65986151,17213.0,17212.0,0.61696347]
[1673315154328,0.8338802,17213.0,17212.0,0.61696347]
[1673315154863,0.9698802,17213.0,17212.0,0.61696347]
[1673315155135,0.9698802,17213.0,17212.0,0.0085]
[1673315155136,0.8338802,17213.0,17212.0,0.0085]
[1673315155401,3.26954338,17213.0,17212.0,0.0085]
[1673315155652,2.9371452,17213.0,17212.0,0.0085]
[1673315155903,4.3883932,17213.0,17211.0,0.17444243]
[1673315156165,1.11702916,17212.0,17211.0,0.17444243]
[1673315156455,3.01271599,17212.0,17211.0,0.17444243]
[1673315156706,3.18711348,17212.0,17211.0,0.17444243]
[1673315156980,3.38524249,17212.0,17211.0,0.17444243]
[1673315157233,3.38524249,17212.0,17211.0,0.18294243]
[1673315157480,3.38524249,17212.0,17211.0,0.18288147]
[1673315157736,4.06492566,17212.0,17211.0,0.18288147]
[1673315158250,3.86679665,17212.0,17211.0,0.18288147]
[1673315158805,4.19893483,17212.0,17211.0,0.18288147]
[1673315159112,3.86679665,17212.0,17211.0,0.18288147]
[1673315159373,3.69230629,17212.0,17211.0,0.18288147]
[1673315159886,4.27329629,17212.0,17211.0,0.18288147]
[1673315160724,4.40929629,17212.0,17211.0,0.18288147]
[1673315161693,4.19886928,17212.0,17211.0,0.18288147]
[1673315162488,4.19886928,17212.0,17211.0,0.17438147]
[1673315163992,4.19686165,17212.0,17211.0,0.17438147]
[1673315164237,3.82818167,17212.0,17211.0,0.17438147]
[1673315164489,4.00279665,17212.0,17211.0,0.17438147]
[1673315164748,3.86679665,17212.0,17211.0,0.17438147]
[1673315165015,4.00279665,17212.0,17211.0,0.17438147]
[1673315165264,3.69219071,17212.0,17211.0,0.17438147]
[1673315165515,4.00279665,17212.0,17211.0,0.17438147]
[1673315165769,4.40913948,17212.0,17211.0,0.17438147]
[1673315166029,4.58378665,17212.0,17211.0,0.17438147]
[1673315166244,4.40914225,17212.0,17211.0,0.17438147]
[1673315166490,4.58378665,17212.0,17211.0,0.17438147]
[1673315166743,4.70821287,17212.0,17211.0,0.17438147]
[1673315167017,4.44778665,17212.0,17211.0,0.17438147]
[1673315167515,4.77782166,17212.0,17211.0,0.17438147]
[1673315167755,4.44778665,17212.0,17211.0,0.17438147]
[1673315168001,4.10590739,17212.0,17211.0,0.17438147]
[1673315168241,4.24190739,17212.0,17211.0,0.17438147]
[1673315172220,4.41658665,17212.0,17211.0,0.17438147]
[1673315172970,4.59290409,17212.0,17211.0,0.17438147]
[1673315173248,4.24199805,17212.0,17211.0,0.17438147]
[1673315174071,3.66100805,17212.0,17211.0,0.17438147]
[1673315174794,4.09607981,17212.0,17211.0,0.17438147]
[1673315175051,3.66100805,17212.0,17211.0,0.17438147]
[1673315175280,4.09607981,17212.0,17211.0,0.17438147]
[1673315176005,4.01397537,17212.0,17211.0,0.17438147]
[1673315177907,3.84687537,17212.0,17211.0,0.17438147]
[1673315179096,3.84687537,17212.0,17211.0,0.17428408]
[1673315180817,3.24972833,17212.0,17211.0,0.17428408]
[1673315181074,3.07529227,17212.0,17211.0,0.17428408]
[1673315181299,3.33593059,17212.0,17211.0,0.17428408]
[1673315182252,3.04659459,17212.0,17211.0,0.17428408]
[1673315182490,3.33593059,17212.0,17211.0,0.17428408]
[1673315182729,2.75494059,17212.0,17211.0,0.17428408]
[1673315183443,2.34777001,17212.0,17211.0,0.17428408]
[1673315183709,2.17395059,17212.0,17211.0,0.17428408]
[1673315190214,2.17426133,17212.0,17211.0,0.17428408]
[1673315190701,2.60933309,17212.0,17211.0,0.17428408]
[1673315190948,2.34838403,17212.0,17211.0,0.17428408]
[1673315191190,2.05904803,17212.0,17211.0,0.17428408]
[1673315191398,2.34838403,17212.0,17211.0,0.17428408]
[1673315191788,2.52787002,17212.0,17211.0,0.17428408]
[1673315192007,2.34838403,17212.0,17211.0,0.17428408]
[1673315192273,2.2385734,17212.0,17211.0,0.17428408]
[1673315192614,2.5279094,17212.0,17211.0,0.17428408]
[1673315195757,2.65716593,17212.0,17211.0,0.17428408]
[1673315196040,1.74518024,17212.0,17211.0,0.17428408]
[1673315196291,1.87443677,17212.0,17211.0,0.17428408]
[1673315196564,2.16377277,17212.0,17211.0,0.17428408]
[1673315198419,2.74502484,17212.0,17211.0,0.17428408]
[1673315199523,2.45568884,17212.0,17211.0,0.17428408]
[1673315199785,2.74502484,17212.0,17211.0,0.17428408]
[1673315200051,2.74502484,17212.0,17211.0,0.17422229]
[1673315200333,3.32601484,17212.0,17211.0,0.18272229]
[1673315201327,3.21921284,17212.0,17211.0,0.18272229]
[1673315202907,3.21921284,17212.0,17211.0,0.17422229]
[1673315205344,3.74144371,17212.0,17211.0,0.17422229]
[1673315208181,3.48080801,17212.0,17211.0,0.17422229]
[1673315215768,4.06179801,17212.0,17211.0,0.17422229]
[1673315218154,3.38211484,17212.0,17211.0,0.17422229]
[1673315218326,3.38211484,17212.0,17211.0,0.15680007]
[1673315218327,4.2331622,17212.0,17211.0,0.15680007]
[1673315218846,3.19628397,17212.0,17211.0,0.15680007]
[1673315219117,3.06028397,17212.0,17211.0,0.15680007]
[1673315219365,3.38521242,17212.0,17211.0,0.15680007]
[1673315219635,3.70816778,17212.0,17211.0,0.15680007]
[1673315220158,4.09391559,17212.0,17211.0,0.15680007]
[1673315220427,3.71803178,17212.0,17211.0,0.15680007]
[1673315220728,3.58203178,17212.0,17211.0,0.15680007]
[1673315220950,3.71903178,17212.0,17211.0,0.15680007]
[1673315221204,3.86863156,17212.0,17211.0,0.15680007]
[1673315221462,2.95124156,17212.0,17211.0,0.15680007]
[1673315221711,2.42949375,17212.0,17211.0,0.15680007]
[1673315222221,2.8643088,17212.0,17211.0,0.15680007]
[1673315222485,2.2833188,17212.0,17211.0,0.15680007]
[1673315223028,1.2759928,17212.0,17211.0,0.15680007]
[1673315223273,1.75985142,17212.0,17211.0,0.15780007]
[1673315224071,1.5653288,17212.0,17211.0,0.15680007]
[1673315224332,1.4119928,17212.0,17211.0,0.15780007]
[1673315224641,1.5653288,17212.0,17211.0,0.15680007]
[1673315224855,1.7013288,17212.0,17211.0,0.15780007]
[1673315225102,1.2759928,17212.0,17211.0,0.15680007]
[1673315225359,1.62387723,17212.0,17211.0,0.15680007]
[1673315225623,0.87589748,17212.0,17211.0,0.15680007]
[1673315225949,0.70200558,17212.0,17211.0,0.15680007]
[1673315226666,0.83800558,17212.0,17211.0,0.15780007]
[1673315228268,1.01196036,17212.0,17211.0,0.15780007]
[1673315228555,0.83800558,17212.0,17211.0,0.15780007]
[1673315229065,0.66407723,17212.0,17211.0,0.15780007]
[1673315229569,0.66407723,17212.0,17211.0,0.15280007]
[1673315233437,1.01196166,17212.0,17211.0,0.15280007]
[1673315233721,0.66407723,17212.0,17211.0,0.15280007]
[1673315234981,1.21383974,17212.0,17211.0,0.15280007]
[1673315235259,1.67710409,17212.0,17211.0,0.15280007]
[1673315235747,1.38776809,17212.0,17211.0,0.15280007]
[1673315236003,1.67710409,17212.0,17211.0,0.15280007]
[1673315236257,1.38776809,17212.0,17211.0,0.15280007]
[1673315236515,1.67710409,17212.0,17211.0,0.15280007]
[1673315236773,1.38776809,17212.0,17211.0,0.15280007]
[1673315239121,1.67710409,17212.0,17211.0,0.15280007]
[1673315239368,1.38776809,17212.0,17211.0,0.15280007]
[1673315240135,1.67710409,17212.0,17211.0,0.15280007]
[1673315240419,1.38776809,17212.0,17211.0,0.15280007]
[1673315240664,1.67710409,17212.0,17211.0,0.15280007]
[1673315240913,1.38776809,17212.0,17211.0,0.15280007]
[1673315241688,1.67710409,17212.0,17211.0,0.15280007]
[1673315241955,1.38776809,17212.0,17211.0,0.15280007]
[1673315242210,1.56166731,17212.0,17211.0,0.15280007]
[1673315243730,1.21378288,17212.0,17211.0,0.15280007]
[1673315244499,1.56166731,17212.0,17211.0,0.15280007]
[1673315245005,1.50311888,17212.0,17211.0,0.15280007]
[1673315245618,1.67710409,17212.0,17211.0,0.15280007]
[1673315246090,1.21375872,17212.0,17211.0,0.15280007]
[1673315247431,1.50309472,17212.0,17211.0,0.15280007]
[1673315247684,1.38776809,17212.0,17211.0,0.15280007]
[1673315247975,1.67710409,17212.0,17211.0,0.14885252]
[1673315248245,1.21377095,17212.0,17211.0,0.14885252]
[1673315249025,1.85099138,17212.0,17211.0,0.14885252]
[1673315249305,1.50310695,17212.0,17211.0,0.14885252]
[1673315249578,1.21377095,17212.0,17211.0,0.14885252]
[1673315249810,1.56165538,17212.0,17211.0,0.14885252]
[1673315250059,1.21377095,17212.0,17211.0,0.14885252]
[1673315253247,0.57081044,17212.0,17211.0,0.14885252]
[1673315253525,0.30988729,17212.0,17211.0,0.85635967]
[1673315254067,0.17388729,17212.0,17211.0,0.85535967]
[1673315254580,0.136,17212.0,17211.0,0.85835967]
[1673315255110,0.30988729,17212.0,17211.0,0.85835967]
[1673315255882,0.136,17212.0,17211.0,2.02890567]
[1673315256150,0.136,17212.0,17211.0,2.39086867]
[1673315256447,0.136,17212.0,17211.0,2.02890567]
[1673315257080,0.17598703,17212.0,17211.0,2.02890567]
[1673315257338,0.34987432,17212.0,17211.0,2.02890567]
[1673315258363,0.17598703,17212.0,17211.0,2.02890567]
[1673315258589,0.17598703,17212.0,17211.0,2.39086867]
[1673315259142,0.17598703,17212.0,17211.0,2.02890567]
[1673315259887,0.03998703,17212.0,17211.0,2.02590567]
[1673315260148,0.17198703,17212.0,17211.0,2.03090567]
[1673315260404,0.17198703,17212.0,17211.0,2.39286867]
[1673315260909,0.17198703,17212.0,17211.0,2.03090567]
[1673315261411,0.34587432,17212.0,17211.0,2.03090567]
[1673315273487,0.60679747,17212.0,17211.0,2.03090567]
[1673315275301,0.34587432,17212.0,17211.0,2.03090567]
[1673315276110,0.60679747,17212.0,17211.0,2.03090567]
[1673315277965,1.44398334,17212.0,17211.0,0.16135252]
[1673315278214,2.49920421,17212.0,17211.0,0.15285252]
[1673315278472,2.35131978,17212.0,17211.0,0.15285252]
[1673315278759,2.35131978,17212.0,17211.0,0.15276507]
[1673315279025,3.51329978,17212.0,17211.0,0.15276507]
[1673315280071,3.22396378,17212.0,17211.0,0.15276507]
[1673315280332,3.51329978,17212.0,17211.0,0.15276507]
[1673315280848,3.22396378,17212.0,17211.0,0.15276507]
[1673315281098,3.51329978,17212.0,17211.0,0.15276507]
[1673315281603,3.22396378,17212.0,17211.0,0.15276507]
[1673315281855,3.51329978,17212.0,17211.0,0.15276507]
[1673315282591,3.22396378,17212.0,17211.0,0.15276507]
[1673315282844,3.51329978,17212.0,17211.0,0.15276507]
[1673315284327,3.57195959,17212.0,17211.0,0.15276507]
[1673315284565,3.86129559,17212.0,17211.0,0.15276507]
[1673315286787,3.86129559,17212.0,17211.0,0.005]
[1673315287015,3.51329978,17212.0,17211.0,0.005]
[1673315287841,3.07848473,17212.0,17211.0,0.005]
[1673315288037,3.51340283,17212.0,17211.0,0.005]
[1673315288296,3.07848473,17212.0,17211.0,0.005]
[1673315289579,3.5133408,17212.0,17211.0,0.005]
[1673315290340,3.2240048,17212.0,17211.0,0.005]
[1673315290592,3.51333849,17212.0,17211.0,0.005]
[1673315296145,3.22400249,17212.0,17211.0,0.005]
[1673315296390,3.86110094,17212.0,17211.0,0.005]
[1673315303377,3.86110094,17212.0,17211.0,0.00491382]
[1673315304377,3.85955376,17212.0,17211.0,0.00491382]
[1673315305158,3.57021776,17212.0,17211.0,0.00491382]
[1673315305409,3.85955376,17212.0,17211.0,0.00491382]
[1673315306687,3.85955376,17212.0,17210.0,0.14776507]
[1673315306943,0.63479505,17211.0,17210.0,0.14776507]
[1673315307464,0.37391802,17211.0,17210.0,0.69771456]
[1673315307715,0.2,17211.0,17210.0,0.69771456]
[1673315308283,0.335,17211.0,17210.0,0.69771456]
[1673315309753,0.135,17211.0,17210.0,0.69771456]
[1673315311777,0.30891802,17211.0,17210.0,0.69771456]
[1673315312026,0.17391802,17211.0,17210.0,0.69771456]
[1673315312539,1.33642363,17212.0,17210.0,0.69771456]
[1673315312779,0.136,17211.0,17210.0,0.69771456]
[1673315313034,1.68418608,17212.0,17210.0,0.69771456]
[1673315313336,0.135,17211.0,17210.0,0.69771456]
[1673315313535,1.33642363,17212.0,17210.0,0.69771456]
[1673315313775,1.81918608,17212.0,17210.0,0.69771456]
[1673315314831,1.47142363,17212.0,17210.0,0.69771456]
[1673315315803,0.17391802,17211.0,17210.0,0.69771456]
[1673315316567,1.68418608,17212.0,17210.0,0.69771456]
[1673315316833,0.135,17211.0,17210.0,0.69771456]
[1673315317847,0.30891802,17211.0,17210.0,0.69771456]
[1673315318107,0.135,17211.0,17210.0,0.69771456]
[1673315318362,0.30891802,17211.0,17210.0,0.69771456]
[1673315320426,0.135,17211.0,17210.0,0.69771456]
[1673315322000,0.135,17211.0,17210.0,0.14776507]
[1673315322250,0.56979505,17211.0,17210.0,0.14776507]
[1673315322498,0.76979505,17211.0,17210.0,0.14776507]
[1673315322752,1.1175575,17211.0,17210.0,0.14776507]
[1673315323004,1.4068935,17211.0,17210.0,0.14776507]
[1673315323258,0.76979505,17211.0,17210.0,0.14776507]
[1673315324916,1.1175575,17211.0,17210.0,0.14776507]
[1673315325163,0.76979505,17211.0,17210.0,0.14776507]
[1673315326357,1.1175575,17211.0,17210.0,0.14776507]
[1673315326630,0.76979505,17211.0,17210.0,0.14776507]
[1673315327372,0.76987735,17211.0,17210.0,0.14776507]
[1673315328934,1.1176398,17211.0,17210.0,0.14776507]
[1673315329435,0.94363948,17211.0,17210.0,0.14769836]
[1673315329651,0.769881,17211.0,17210.0,0.14769836]
[1673315335042,0.94363948,17211.0,17210.0,0.14769836]
[1673315337341,1.29033988,17211.0,17210.0,0.14769836]
[1673315337600,1.11761621,17211.0,17210.0,0.14769836]
[1673315337893,1.29034057,17211.0,17210.0,0.14769836]
[1673315338115,1.11761621,17211.0,17210.0,0.14769836]
[1673315338364,0.9437373,17211.0,17210.0,0.14769836]
[1673315338624,0.94312897,17211.0,17210.0,0.14769836]
[1673315338890,0.94312595,17211.0,17210.0,0.14769836]
[1673315339946,0.98219399,17211.0,17210.0,0.14769836]
[1673315340247,1.32795615,17211.0,17210.0,0.14769836]
[1673315340512,1.51674047,17211.0,17210.0,0.14769836]
[1673315341834,1.51422347,17211.0,17210.0,0.14769836]
[1673315342336,1.8621161,17211.0,17210.0,0.14769836]
[1673315343353,1.51422347,17211.0,17210.0,0.14769836]
[1673315343579,2.44310183,17211.0,17210.0,0.14769836]
[1673315343861,2.09524647,17211.0,17210.0,0.14769836]
[1673315345141,2.44310934,17211.0,17210.0,0.14769836]
[1673315346157,2.0972533,17211.0,17210.0,0.14769836]
[1673315347445,1.5162303,17211.0,17210.0,0.14769836]
[1673315350283,1.5162303,17211.0,17210.0,0.75146547]
[1673315350284,0.95360627,17211.0,17210.0,0.75146547]